[Event "Early-Titled-Tuesday-Blitz-May-14-2024"]
[Site "Chess.com"]
[Date "2024.05.14"]
[Round "3"]
[White "Rodalquilar"]
[Black "Iskusnyh"]
[Result "1-0"]
[WhiteElo "2877"]
[BlackElo "2586"]
[TimeControl "180+1"]
[EndTime "8:29:01 PDT"]
[Termination "Rodalquilar won on time"]

1. d4 {[%clk 0:03:00.9]} 1... d5 {[%clk 0:02:59.4]} 2. Nf3 {[%clk 0:03:01.1]}
2... Nf6 {[%clk 0:02:59.2]} 3. Bf4 {[%clk 0:03:01.3]} 3... c5 {[%clk 0:02:58.7]}
4. e3 {[%clk 0:03:01.6]} 4... Nc6 {[%clk 0:02:57.7]} 5. c3 {[%clk 0:03:02.1]}
5... Qb6 {[%clk 0:02:55.8]} 6. Qc2 {[%clk 0:03:02.5]} 6... g6 {[%clk 0:02:53.3]}
7. h3 {[%clk 0:03:02.1]} 7... Bg7 {[%clk 0:02:52.9]} 8. Nbd2 {[%clk 0:03:02.4]}
8... O-O {[%clk 0:02:49.6]} 9. Be2 {[%clk 0:03:02.7]} 9... cxd4 {[%clk
0:02:37.6]} 10. exd4 {[%clk 0:03:02.8]} 10... Nh5 {[%clk 0:02:26.3]} 11. Bh2
{[%clk 0:03:01.6]} 11... Bh6 {[%clk 0:02:07.9]} 12. g4 {[%clk 0:03:00.5]} 12...
Nf4 {[%clk 0:01:57.6]} 13. g5 {[%clk 0:03:00.8]} 13... Ng2+ {[%clk 0:01:44.5]}
14. Kf1 {[%clk 0:02:59.4]} 14... Bxh3 {[%clk 0:01:43.7]} 15. Kg1 {[%clk
0:03:00]} 15... Bg7 {[%clk 0:01:33.6]} 16. Bg3 {[%clk 0:02:59.7]} 16... Bf5
{[%clk 0:01:24.4]} 17. Qb3 {[%clk 0:02:57.5]} 17... Qd8 {[%clk 0:01:23]} 18.
Kxg2 {[%clk 0:02:56.9]} 18... Qd7 {[%clk 0:01:09.4]} 19. Qd1 {[%clk 0:02:33.7]}
19... Rfe8 {[%clk 0:01:05]} 20. Qg1 {[%clk 0:02:33.3]} 20... e5 {[%clk
0:00:56.7]} 21. dxe5 {[%clk 0:02:29.9]} 21... Nxe5 {[%clk 0:00:56.1]} 22. Nxe5
{[%clk 0:02:10.3]} 22... Rxe5 {[%clk 0:00:33.8]} 23. Re1 {[%clk 0:01:41.6]}
23... Re6 {[%clk 0:00:12.6]} 24. Bf3 {[%clk 0:01:10.8]} 24... Rae8 {[%clk
0:00:11.6]} 25. Rxe6 {[%clk 0:01:08.9]} 25... fxe6 {[%clk 0:00:11]} 26. Qh2
{[%clk 0:01:06.3]} 26... Bh8 {[%clk 0:00:10.4]} 27. Be5 {[%clk 0:01:05.6]} 27...
Qe7 {[%clk 0:00:10.1]} 28. Bxh8 {[%clk 0:00:57.4]} 28... Kxh8 {[%clk 0:00:09]}
29. Qe5+ {[%clk 0:00:56.4]} 29... Kg8 {[%clk 0:00:09.4]} 30. Qg3 {[%clk
0:00:52.5]} 30... e5 {[%clk 0:00:09.1]} 31. Bxd5+ {[%clk 0:00:52.1]} 31... Kh8
{[%clk 0:00:09.6]} 32. Ne4 {[%clk 0:00:47.3]} 32... Rd8 {[%clk 0:00:07]} 33. Nf6
{[%clk 0:00:47.2]} 33... h5 {[%clk 0:00:07.4]} 34. Re1 {[%clk 0:00:43.4]} 1-0

[Event "Early-Titled-Tuesday-Blitz-May-14-2024"]
[Site "Chess.com"]
[Date "2024.05.14"]
[Round "3"]
[White "Azalea95"]
[Black "Mbneu"]
[Result "0-1"]
[WhiteElo "2375"]
[BlackElo "2232"]
[TimeControl "180+1"]
[EndTime "8:29:01 PDT"]
[Termination "Mbneu won on time"]

1. e4 {[%clk 0:02:57.9]} 1... c5 {[%clk 0:02:58.8]} 2. Nf3 {[%clk 0:02:57.2]}
2... Nf6 {[%clk 0:02:59.4]} 3. Nc3 {[%clk 0:02:49.3]} 3... d5 {[%clk 0:02:58.5]}
4. exd5 {[%clk 0:02:48.9]} 4... Nxd5 {[%clk 0:02:58.6]} 5. a4 {[%clk 0:02:34.8]}
5... a6 {[%clk 0:02:52.6]} 6. Bc4 {[%clk 0:02:14.6]} 6... Nxc3 {[%clk
0:02:28.1]} 7. dxc3 {[%clk 0:02:13.8]} 7... Qxd1+ {[%clk 0:02:26.1]} 8. Kxd1
{[%clk 0:02:14.7]} 8... Bg4 {[%clk 0:02:25.2]} 9. Bd5 {[%clk 0:02:09.8]} 9...
Nc6 {[%clk 0:02:14.4]} 10. Ke2 {[%clk 0:02:08.5]} 10... e6 {[%clk 0:01:49.1]}
11. Be4 {[%clk 0:02:05.8]} 11... O-O-O {[%clk 0:01:41.6]} 12. h3 {[%clk
0:02:03.2]} 12... Bh5 {[%clk 0:01:39]} 13. Be3 {[%clk 0:01:38.9]} 13... f5
{[%clk 0:01:32.5]} 14. Bxc6 {[%clk 0:01:31.9]} 14... bxc6 {[%clk 0:01:33.4]} 15.
Bg5 {[%clk 0:01:20.2]} 15... Rd7 {[%clk 0:01:31.8]} 16. Rad1 {[%clk 0:01:19.5]}
16... Bd6 {[%clk 0:01:21.3]} 17. Rd3 {[%clk 0:01:05.6]} 17... e5 {[%clk
0:01:19.5]} 18. Rhd1 {[%clk 0:00:59.9]} 18... Kc7 {[%clk 0:01:18.4]} 19. g4
{[%clk 0:00:28.9]} 19... fxg4 {[%clk 0:01:16.7]} 20. Nxe5 {[%clk 0:00:29.2]}
20... Re8 {[%clk 0:01:16.7]} 21. Bf4 {[%clk 0:00:24.3]} 21... gxh3+ {[%clk
0:01:09.8]} 22. f3 {[%clk 0:00:24.5]} 22... Rf7 {[%clk 0:01:00]} 23. Rxd6 {[%clk
0:00:21.3]} 23... Rxf4 {[%clk 0:00:55.2]} 24. Rxc6+ {[%clk 0:00:10.9]} 24... Kb8
{[%clk 0:00:54.6]} 25. Rxc5 {[%clk 0:00:07.3]} 25... Bxf3+ {[%clk 0:00:49.5]}
26. Ke3 {[%clk 0:00:07.3]} 26... Bxd1 {[%clk 0:00:49.2]} 27. Kxf4 {[%clk
0:00:07.3]} 27... h2 {[%clk 0:00:45.2]} 28. Nd7+ {[%clk 0:00:01.8]} 28... Ka7
{[%clk 0:00:37.9]} 29. Rh5 {[%clk 0:00:02.7]} 29... Re2 {[%clk 0:00:33.7]} 0-1

[Event "Early-Titled-Tuesday-Blitz-May-14-2024"]
[Site "Chess.com"]
[Date "2024.05.14"]
[Round "3"]
[White "monomita"]
[Black "hongnhung1234"]
[Result "1/2-1/2"]
[WhiteElo "2750"]
[BlackElo "2550"]
[TimeControl "180+1"]
[EndTime "8:29:04 PDT"]
[Termination "Game drawn by repetition"]

1. d4 {[%clk 0:03:00.9]} 1... Nf6 {[%clk 0:02:59.4]} 2. Nc3 {[%clk 0:03:00.7]}
2... c5 {[%clk 0:02:58.1]} 3. d5 {[%clk 0:02:59.8]} 3... d6 {[%clk 0:02:57]} 4.
e4 {[%clk 0:03:00.1]} 4... a6 {[%clk 0:02:55.9]} 5. f4 {[%clk 0:02:59.6]} 5...
b5 {[%clk 0:02:55.2]} 6. e5 {[%clk 0:02:51.9]} 6... dxe5 {[%clk 0:02:54.9]} 7.
fxe5 {[%clk 0:02:52.1]} 7... b4 {[%clk 0:02:51.9]} 8. exf6 {[%clk 0:02:41.6]}
8... bxc3 {[%clk 0:02:51.6]} 9. fxe7 {[%clk 0:02:28.1]} 9... Bxe7 {[%clk
0:02:51]} 10. bxc3 {[%clk 0:02:25.2]} 10... O-O {[%clk 0:02:40.2]} 11. Nf3
{[%clk 0:02:24.1]} 11... Bf6 {[%clk 0:02:38.1]} 12. Be2 {[%clk 0:02:24.3]} 12...
Bxc3+ {[%clk 0:02:36.8]} 13. Bd2 {[%clk 0:02:24.6]} 13... Bxa1 {[%clk
0:02:33.1]} 14. Qxa1 {[%clk 0:02:25.3]} 14... Qxd5 {[%clk 0:02:33]} 15. Bc3
{[%clk 0:02:22.2]} 15... f6 {[%clk 0:02:30.2]} 16. O-O {[%clk 0:02:20.4]} 16...
Re8 {[%clk 0:02:18.6]} 17. Rf2 {[%clk 0:02:08.5]} 17... Nc6 {[%clk 0:01:56.3]}
18. Nd2 {[%clk 0:02:08.2]} 18... Qf7 {[%clk 0:01:40.5]} 19. Bf3 {[%clk
0:01:33.3]} 19... Bb7 {[%clk 0:01:36.2]} 20. Ne4 {[%clk 0:01:32.9]} 20... Nd4
{[%clk 0:00:44.7]} 21. Nd6 {[%clk 0:01:09.6]} 21... Nxf3+ {[%clk 0:00:43.4]} 22.
Rxf3 {[%clk 0:01:08.6]} 22... Qd7 {[%clk 0:00:25.1]} 23. Nxb7 {[%clk 0:00:42.8]}
23... Qxb7 {[%clk 0:00:25.8]} 24. Bxf6 {[%clk 0:00:42.8]} 24... gxf6 {[%clk
0:00:21.1]} 25. Qxf6 {[%clk 0:00:40.8]} 25... Qb1+ {[%clk 0:00:09.4]} 26. Rf1
{[%clk 0:00:39.7]} 26... Qxc2 {[%clk 0:00:07.9]} 27. Qf7+ {[%clk 0:00:36.3]}
27... Kh8 {[%clk 0:00:08.4]} 28. Qf6+ {[%clk 0:00:36.1]} 28... Kg8 {[%clk
0:00:09.2]} 29. Qf7+ {[%clk 0:00:36.1]} 29... Kh8 {[%clk 0:00:09.9]} 30. Qf6+
{[%clk 0:00:36.3]} 30... Kg8 {[%clk 0:00:10.4]} 1/2-1/2

[Event "Early-Titled-Tuesday-Blitz-May-14-2024"]
[Site "Chess.com"]
[Date "2024.05.14"]
[Round "3"]
[White "subham777"]
[Black "Makswolf200817"]
[Result "0-1"]
[WhiteElo "2528"]
[BlackElo "2774"]
[TimeControl "180+1"]
[EndTime "8:29:05 PDT"]
[Termination "Makswolf200817 won on time"]

1. e4 {[%clk 0:03:00.9]} 1... c5 {[%clk 0:02:59.1]} 2. Nf3 {[%clk 0:02:59.7]}
2... d6 {[%clk 0:02:59.1]} 3. d4 {[%clk 0:02:58.9]} 3... cxd4 {[%clk 0:02:59.5]}
4. Qxd4 {[%clk 0:02:59.5]} 4... Nc6 {[%clk 0:02:59.1]} 5. Bb5 {[%clk 0:02:57.3]}
5... Bd7 {[%clk 0:02:59.3]} 6. Bxc6 {[%clk 0:02:54.3]} 6... Bxc6 {[%clk
0:02:58.8]} 7. c4 {[%clk 0:02:54.8]} 7... Nf6 {[%clk 0:02:54.2]} 8. Nc3 {[%clk
0:02:54.3]} 8... g6 {[%clk 0:02:54.6]} 9. Bg5 {[%clk 0:02:49.9]} 9... Bg7 {[%clk
0:02:54.8]} 10. O-O {[%clk 0:02:49.2]} 10... O-O {[%clk 0:02:54.7]} 11. Qd3
{[%clk 0:02:49.3]} 11... Nd7 {[%clk 0:02:37.2]} 12. Nd4 {[%clk 0:02:45.9]} 12...
Rc8 {[%clk 0:02:27.1]} 13. Rad1 {[%clk 0:02:37.1]} 13... Nc5 {[%clk 0:02:11.1]}
14. Qe3 {[%clk 0:02:30.6]} 14... Re8 {[%clk 0:02:06.1]} 15. b4 {[%clk
0:02:10.6]} 15... Bxd4 {[%clk 0:01:56.6]} 16. Rxd4 {[%clk 0:01:58.8]} 16... Ne6
{[%clk 0:01:56.7]} 17. Rdd1 {[%clk 0:01:50.4]} 17... Bd7 {[%clk 0:01:51]} 18.
Nd5 {[%clk 0:01:36.3]} 18... Rxc4 {[%clk 0:01:35.2]} 19. Bh6 {[%clk 0:01:28.9]}
19... Bc6 {[%clk 0:01:28]} 20. f4 {[%clk 0:01:28.1]} 20... Bxd5 {[%clk
0:01:25.2]} 21. exd5 {[%clk 0:01:27.9]} 21... Ng7 {[%clk 0:01:24.1]} 22. f5
{[%clk 0:01:12.3]} 22... Qb6 {[%clk 0:01:08.7]} 23. Qxb6 {[%clk 0:00:51.4]}
23... axb6 {[%clk 0:01:09.6]} 24. fxg6 {[%clk 0:00:46.9]} 24... hxg6 {[%clk
0:01:09.3]} 25. Be3 {[%clk 0:00:37.6]} 25... Rxb4 {[%clk 0:01:03.8]} 26. Rb1
{[%clk 0:00:37.8]} 26... Ra4 {[%clk 0:01:02.9]} 27. Rxb6 {[%clk 0:00:35]} 27...
Nf5 {[%clk 0:00:58.7]} 28. Bf2 {[%clk 0:00:28.8]} 28... Rxa2 {[%clk 0:00:58.7]}
29. Rxb7 {[%clk 0:00:28.8]} 29... Rd2 {[%clk 0:00:57.6]} 30. Rb5 {[%clk
0:00:23.7]} 30... Rc8 {[%clk 0:00:56.6]} 31. g4 {[%clk 0:00:18.9]} 31... Ng7
{[%clk 0:00:55.8]} 32. Be3 {[%clk 0:00:17.6]} 32... Re2 {[%clk 0:00:54.9]} 33.
Bf4 {[%clk 0:00:15.7]} 33... Rcc2 {[%clk 0:00:54.3]} 34. Rb8+ {[%clk 0:00:14.2]}
34... Kh7 {[%clk 0:00:54.7]} 35. Rb7 {[%clk 0:00:14.7]} 35... Ne8 {[%clk
0:00:53]} 36. Bg3 {[%clk 0:00:14.2]} 36... Kg7 {[%clk 0:00:50.9]} 37. Rb8 {[%clk
0:00:07.6]} 37... Nf6 {[%clk 0:00:49.6]} 38. g5 {[%clk 0:00:05.8]} 38... Nxd5
{[%clk 0:00:49.5]} 39. Rb7 {[%clk 0:00:04.2]} 39... Ne3 {[%clk 0:00:47.4]} 40.
Ra1 {[%clk 0:00:03.4]} 40... Nf5 {[%clk 0:00:46.4]} 0-1

[Event "Early-Titled-Tuesday-Blitz-May-14-2024"]
[Site "Chess.com"]
[Date "2024.05.14"]
[Round "3"]
[White "Escudito"]
[Black "Kunalm64"]
[Result "0-1"]
[WhiteElo "2346"]
[BlackElo "2610"]
[TimeControl "180+1"]
[EndTime "8:29:07 PDT"]
[Termination "Kunalm64 won on time"]

1. d4 {[%clk 0:03:00.9]} 1... Nf6 {[%clk 0:02:55.5]} 2. Nf3 {[%clk 0:03:01.2]}
2... g6 {[%clk 0:02:50.1]} 3. c4 {[%clk 0:03:00.8]} 3... Bg7 {[%clk 0:02:49.6]}
4. Nc3 {[%clk 0:02:59.5]} 4... d5 {[%clk 0:02:49.6]} 5. cxd5 {[%clk 0:02:28.2]}
5... Nxd5 {[%clk 0:02:49.9]} 6. h4 {[%clk 0:02:28.8]} 6... c5 {[%clk 0:02:44.6]}
7. h5 {[%clk 0:02:20.6]} 7... cxd4 {[%clk 0:02:41.1]} 8. Nxd4 {[%clk 0:02:18.8]}
8... Nc6 {[%clk 0:02:38.7]} 9. hxg6 {[%clk 0:02:13.7]} 9... Bxd4 {[%clk
0:02:31.9]} 10. gxf7+ {[%clk 0:02:10.5]} 10... Kxf7 {[%clk 0:02:26.7]} 11. e3
{[%clk 0:01:46.5]} 11... Nxc3 {[%clk 0:02:23.3]} 12. Qh5+ {[%clk 0:01:37.7]}
12... Kf8 {[%clk 0:02:20.5]} 13. exd4 {[%clk 0:01:37.5]} 13... Nd5 {[%clk
0:01:18.3]} 14. Bh6+ {[%clk 0:01:34.2]} 14... Kg8 {[%clk 0:01:18.2]} 15. Qg5+
{[%clk 0:01:34.3]} 15... Kf7 {[%clk 0:01:16.7]} 16. Bc4 {[%clk 0:01:21.5]} 16...
Qa5+ {[%clk 0:01:15.5]} 17. Kf1 {[%clk 0:01:08.5]} 17... Rd8 {[%clk 0:01:04.3]}
18. Re1 {[%clk 0:01:01]} 18... e6 {[%clk 0:00:48.3]} 19. Qg7+ {[%clk 0:00:35]}
19... Ke8 {[%clk 0:00:47.8]} 20. Be2 {[%clk 0:00:35.8]} 20... Nce7 {[%clk
0:00:39.9]} 21. Qe5 {[%clk 0:00:11.9]} 21... Kd7 {[%clk 0:00:31.2]} 22. Bg4
{[%clk 0:00:08.2]} 22... Qa6+ {[%clk 0:00:25.9]} 23. Kg1 {[%clk 0:00:07.9]}
23... Qd6 {[%clk 0:00:23.1]} 24. Qg7 {[%clk 0:00:04.3]} 24... Rg8 {[%clk
0:00:22.4]} 25. Bxe6+ {[%clk 0:00:00.8]} 25... Qxe6 {[%clk 0:00:22.1]} 0-1

[Event "Early-Titled-Tuesday-Blitz-May-14-2024"]
[Site "Chess.com"]
[Date "2024.05.14"]
[Round "3"]
[White "CristianS27"]
[Black "Buzhizhebuguai"]
[Result "0-1"]
[WhiteElo "2526"]
[BlackElo "2769"]
[TimeControl "180+1"]
[EndTime "8:29:09 PDT"]
[Termination "Buzhizhebuguai won on time"]

1. e4 {[%clk 0:03:00.9]} 1... e6 {[%clk 0:02:58.9]} 2. d4 {[%clk 0:02:52]} 2...
d5 {[%clk 0:02:59.1]} 3. Nd2 {[%clk 0:02:50.4]} 3... Nf6 {[%clk 0:02:55.7]} 4.
e5 {[%clk 0:02:48.5]} 4... Ne4 {[%clk 0:02:56]} 5. c3 {[%clk 0:02:49.4]} 5... c5
{[%clk 0:02:54.6]} 6. Bd3 {[%clk 0:02:36]} 6... Nxd2 {[%clk 0:02:46.3]} 7. Bxd2
{[%clk 0:02:36]} 7... Nc6 {[%clk 0:02:45.9]} 8. Nf3 {[%clk 0:02:29.8]} 8... cxd4
{[%clk 0:02:46.2]} 9. cxd4 {[%clk 0:02:29.4]} 9... Qb6 {[%clk 0:02:46.8]} 10.
O-O {[%clk 0:02:25.6]} 10... Bd7 {[%clk 0:02:42.4]} 11. Bc3 {[%clk 0:02:16.9]}
11... Bb4 {[%clk 0:02:37]} 12. Ng5 {[%clk 0:01:50.4]} 12... h6 {[%clk 0:02:37]}
13. Qh5 {[%clk 0:01:39.5]} 13... O-O {[%clk 0:02:16.5]} 14. Rad1 {[%clk
0:01:07.9]} 14... Bxc3 {[%clk 0:02:03.7]} 15. bxc3 {[%clk 0:01:07.6]} 15... Ne7
{[%clk 0:01:52]} 16. Nh7 {[%clk 0:00:45.4]} 16... Rfd8 {[%clk 0:01:35.3]} 17.
Rb1 {[%clk 0:00:42.5]} 17... Qc7 {[%clk 0:01:30]} 18. Rfe1 {[%clk 0:00:14.6]}
18... Kh8 {[%clk 0:00:56.8]} 19. Qxf7 {[%clk 0:00:11.6]} 19... Nf5 {[%clk
0:00:52.6]} 20. Bxf5 {[%clk 0:00:08.1]} 20... exf5 {[%clk 0:00:53.5]} 21. e6
{[%clk 0:00:08.6]} 21... Kxh7 {[%clk 0:00:52.8]} 22. Qxf5+ {[%clk 0:00:07.6]}
22... Kh8 {[%clk 0:00:52.6]} 23. exd7 {[%clk 0:00:04.7]} 23... Rxd7 {[%clk
0:00:53]} 24. Re5 {[%clk 0:00:03]} 24... Rad8 {[%clk 0:00:49.6]} 25. Rbe1 {[%clk
0:00:03.2]} 25... Rg8 {[%clk 0:00:32.4]} 26. Re8 {[%clk 0:00:02.2]} 26... Rd8
{[%clk 0:00:32]} 27. R8e7 {[%clk 0:00:01.5]} 27... Qxc3 {[%clk 0:00:29.7]} 28.
Qf4 {[%clk 0:00:00.8]} 28... Rdf8 {[%clk 0:00:27.1]} 0-1

[Event "Early-Titled-Tuesday-Blitz-May-14-2024"]
[Site "Chess.com"]
[Date "2024.05.14"]
[Round "3"]
[White "Ginger_GM"]
[Black "jup1978"]
[Result "0-1"]
[WhiteElo "2652"]
[BlackElo "2476"]
[TimeControl "180+1"]
[EndTime "8:29:09 PDT"]
[Termination "jup1978 won by resignation"]

1. c4 {[%clk 0:03:00.9]} 1... e6 {[%clk 0:02:58.5]} 2. Nc3 {[%clk 0:02:59.7]}
2... d5 {[%clk 0:02:59]} 3. d4 {[%clk 0:02:59.7]} 3... a6 {[%clk 0:02:58.3]} 4.
c5 {[%clk 0:02:46.3]} 4... e5 {[%clk 0:02:39.9]} 5. dxe5 {[%clk 0:02:37.6]} 5...
d4 {[%clk 0:02:39.8]} 6. Na4 {[%clk 0:02:20.6]} 6... Nc6 {[%clk 0:02:26.9]} 7.
Nf3 {[%clk 0:02:16.6]} 7... Bg4 {[%clk 0:02:19.7]} 8. Bf4 {[%clk 0:02:05.2]}
8... Qd5 {[%clk 0:01:58.6]} 9. e3 {[%clk 0:02:02.3]} 9... O-O-O {[%clk
0:01:55.8]} 10. Qb3 {[%clk 0:01:12.8]} 10... Bxf3 {[%clk 0:01:47.5]} 11. gxf3
{[%clk 0:01:12.5]} 11... Qxf3 {[%clk 0:01:47.3]} 12. Rg1 {[%clk 0:01:11.8]}
12... dxe3 {[%clk 0:01:30.7]} 13. fxe3 {[%clk 0:01:11.2]} 13... Nge7 {[%clk
0:01:13.7]} 14. Bg2 {[%clk 0:01:09.8]} 14... Qh5 {[%clk 0:01:11]} 15. Rc1 {[%clk
0:00:34.3]} 15... h6 {[%clk 0:01:09.8]} 16. Qc4 {[%clk 0:00:25]} 16... g5 {[%clk
0:01:06.9]} 17. Bg3 {[%clk 0:00:25.2]} 17... Bg7 {[%clk 0:00:58.7]} 18. Qe4
{[%clk 0:00:24.8]} 18... Qg6 {[%clk 0:00:55.2]} 19. Qxg6 {[%clk 0:00:16.5]}
19... fxg6 {[%clk 0:00:56.1]} 20. e6 {[%clk 0:00:15.1]} 20... Be5 {[%clk
0:00:48.1]} 21. Ke2 {[%clk 0:00:15.2]} 21... h5 {[%clk 0:00:44.6]} 22. Rgf1
{[%clk 0:00:13.8]} 22... Rhf8 {[%clk 0:00:42.2]} 23. Be4 {[%clk 0:00:12.8]}
23... Bxg3 {[%clk 0:00:36.7]} 24. hxg3 {[%clk 0:00:13.7]} 24... Nf5 {[%clk
0:00:34.6]} 25. Bxf5 {[%clk 0:00:12.5]} 25... gxf5 {[%clk 0:00:33.2]} 26. Rh1
{[%clk 0:00:11.8]} 26... Rh8 {[%clk 0:00:32.8]} 27. Rcf1 {[%clk 0:00:11.7]}
27... Rdf8 {[%clk 0:00:28.5]} 28. Nc3 {[%clk 0:00:11.8]} 28... Rf6 {[%clk
0:00:25.8]} 29. Nd5 {[%clk 0:00:11]} 29... Rxe6 {[%clk 0:00:25.9]} 30. Rxf5
{[%clk 0:00:10.8]} 30... Nd4+ {[%clk 0:00:26.4]} 31. Kd3 {[%clk 0:00:05.9]}
31... Nxf5 {[%clk 0:00:27.3]} 32. Rf1 {[%clk 0:00:05.4]} 32... Rd8 {[%clk
0:00:24.5]} 33. e4 {[%clk 0:00:05.1]} 33... Ne7 {[%clk 0:00:23.2]} 34. Kd4
{[%clk 0:00:04.2]} 34... c6 {[%clk 0:00:22.1]} 0-1

[Event "Early-Titled-Tuesday-Blitz-May-14-2024"]
[Site "Chess.com"]
[Date "2024.05.14"]
[Round "3"]
[White "LangesNasenhaar"]
[Black "HamedWafa4"]
[Result "0-1"]
[WhiteElo "2457"]
[BlackElo "2666"]
[TimeControl "180+1"]
[EndTime "8:29:09 PDT"]
[Termination "HamedWafa4 won by checkmate"]

1. d4 {[%clk 0:03:00.9]} 1... Nf6 {[%clk 0:02:59.7]} 2. Nf3 {[%clk 0:03:01.4]}
2... c5 {[%clk 0:02:59.1]} 3. c3 {[%clk 0:03:00.7]} 3... e6 {[%clk 0:02:57.8]}
4. g3 {[%clk 0:02:58.3]} 4... b5 {[%clk 0:02:56.1]} 5. Bg2 {[%clk 0:02:58.1]}
5... Bb7 {[%clk 0:02:56.3]} 6. O-O {[%clk 0:02:58.7]} 6... Be7 {[%clk
0:02:56.5]} 7. a4 {[%clk 0:02:58.5]} 7... b4 {[%clk 0:02:56.7]} 8. Nbd2 {[%clk
0:02:55]} 8... O-O {[%clk 0:02:54.9]} 9. Re1 {[%clk 0:02:53.1]} 9... d5 {[%clk
0:02:54.1]} 10. Ne5 {[%clk 0:02:47.3]} 10... Nbd7 {[%clk 0:02:53.6]} 11. Ndf3
{[%clk 0:02:37.6]} 11... Ne4 {[%clk 0:02:50.6]} 12. Nxd7 {[%clk 0:02:18.2]}
12... Qxd7 {[%clk 0:02:51.5]} 13. Ne5 {[%clk 0:02:18.2]} 13... Qc7 {[%clk
0:02:51.8]} 14. Bf4 {[%clk 0:02:10.7]} 14... Qc8 {[%clk 0:02:42.9]} 15. Rc1
{[%clk 0:01:44.3]} 15... bxc3 {[%clk 0:02:42.1]} 16. bxc3 {[%clk 0:01:43.9]}
16... Ba6 {[%clk 0:02:33.1]} 17. f3 {[%clk 0:01:35.2]} 17... Nd6 {[%clk
0:02:29.4]} 18. e4 {[%clk 0:01:31.5]} 18... dxe4 {[%clk 0:02:28]} 19. fxe4
{[%clk 0:01:31.4]} 19... Nc4 {[%clk 0:02:20.7]} 20. Nxc4 {[%clk 0:01:16.7]}
20... Bxc4 {[%clk 0:02:21.6]} 21. d5 {[%clk 0:01:12.4]} 21... Rd8 {[%clk
0:01:40.1]} 22. d6 {[%clk 0:01:08.2]} 22... e5 {[%clk 0:01:40.2]} 23. Bxe5
{[%clk 0:00:55.2]} 23... Qe6 {[%clk 0:01:40.1]} 24. Bf4 {[%clk 0:00:41.5]} 24...
Bxd6 {[%clk 0:01:39.7]} 25. Bxd6 {[%clk 0:00:34.2]} 25... Rxd6 {[%clk
0:01:40.6]} 26. Qh5 {[%clk 0:00:31.6]} 26... Rad8 {[%clk 0:01:32.5]} 27. Qxc5
{[%clk 0:00:28.8]} 27... Rd2 {[%clk 0:01:32.5]} 28. Qxa7 {[%clk 0:00:22]} 28...
h5 {[%clk 0:01:26.9]} 29. Qe3 {[%clk 0:00:14.1]} 29... h4 {[%clk 0:01:24.9]} 30.
Qf4 {[%clk 0:00:14.4]} 30... h3 {[%clk 0:01:21.9]} 31. Bf3 {[%clk 0:00:14.7]}
31... Qb6+ {[%clk 0:01:19.9]} 32. Qe3 {[%clk 0:00:10.9]} 32... Qb2 {[%clk
0:01:19.9]} 33. Rcd1 {[%clk 0:00:00.5]} 33... Rg2+ {[%clk 0:01:17.3]} 34. Kh1
{[%clk 0:00:00.3]} 34... Rxh2+ {[%clk 0:01:16.6]} 35. Kg1 {[%clk 0:00:01.2]}
35... Rg2+ {[%clk 0:01:01.8]} 36. Kh1 {[%clk 0:00:01.3]} 36... Rh2+ {[%clk
0:00:49.7]} 37. Kg1 {[%clk 0:00:01]} 37... Rdd2 {[%clk 0:00:50.6]} 38. Rxd2
{[%clk 0:00:01.1]} 38... Rxd2 {[%clk 0:00:49.5]} 39. Rd1 {[%clk 0:00:01.6]}
39... Rxd1+ {[%clk 0:00:45.1]} 40. Bxd1 {[%clk 0:00:02.5]} 40... Qg2# {[%clk
0:00:45.5]} 0-1

[Event "Early-Titled-Tuesday-Blitz-May-14-2024"]
[Site "Chess.com"]
[Date "2024.05.14"]
[Round "3"]
[White "Artem_Koval"]
[Black "Gareth-Bale11"]
[Result "1-0"]
[WhiteElo "2566"]
[BlackElo "2895"]
[TimeControl "180+1"]
[EndTime "8:29:13 PDT"]
[Termination "Artem_Koval won by resignation"]

1. d4 {[%clk 0:03:00.9]} 1... d5 {[%clk 0:02:58.3]} 2. Bf4 {[%clk 0:03:00.8]}
2... Nf6 {[%clk 0:02:52.7]} 3. e3 {[%clk 0:03:00.5]} 3... c5 {[%clk 0:02:48.5]}
4. c3 {[%clk 0:03:00.4]} 4... Qb6 {[%clk 0:02:43.8]} 5. Qc2 {[%clk 0:02:57]}
5... Nc6 {[%clk 0:02:38.8]} 6. Nf3 {[%clk 0:02:54.1]} 6... Bf5 {[%clk
0:02:22.3]} 7. dxc5 {[%clk 0:02:53.6]} 7... Bxc2 {[%clk 0:02:20.2]} 8. cxb6
{[%clk 0:02:53.7]} 8... axb6 {[%clk 0:02:17.8]} 9. Na3 {[%clk 0:02:53.7]} 9...
Be4 {[%clk 0:01:32.6]} 10. Nb5 {[%clk 0:02:51.3]} 10... Rc8 {[%clk 0:01:23.7]}
11. Be2 {[%clk 0:02:47.9]} 11... e6 {[%clk 0:01:14.1]} 12. O-O {[%clk
0:02:42.3]} 12... Nh5 {[%clk 0:01:11.4]} 13. Bc7 {[%clk 0:02:26]} 13... Bc5
{[%clk 0:00:49.2]} 14. b4 {[%clk 0:02:25.8]} 14... Be7 {[%clk 0:00:49.3]} 15.
Bxb6 {[%clk 0:02:24.9]} 15... O-O {[%clk 0:00:49.2]} 16. a4 {[%clk 0:02:19]}
16... Nf6 {[%clk 0:00:49]} 17. a5 {[%clk 0:02:08.4]} 17... h6 {[%clk 0:00:49]}
18. Nfd4 {[%clk 0:01:56.1]} 18... Ne5 {[%clk 0:00:42]} 19. a6 {[%clk 0:01:31.5]}
19... bxa6 {[%clk 0:00:40.2]} 20. Rxa6 {[%clk 0:01:32.4]} 20... Nc4 {[%clk
0:00:31.6]} 21. Bxc4 {[%clk 0:01:26.1]} 21... dxc4 {[%clk 0:00:27.5]} 22. Ra7
{[%clk 0:01:23.1]} 22... Nd5 {[%clk 0:00:24.6]} 23. Ba5 {[%clk 0:01:15.4]} 23...
Bd3 {[%clk 0:00:21.7]} 24. Ra1 {[%clk 0:01:13.3]} 24... e5 {[%clk 0:00:20.5]}
25. Nf3 {[%clk 0:01:05.7]} 25... Bf6 {[%clk 0:00:20.8]} 26. e4 {[%clk
0:00:50.8]} 26... Nf4 {[%clk 0:00:17.5]} 27. Nd6 {[%clk 0:00:42.2]} 27... Rc6
{[%clk 0:00:16.9]} 28. Bc7 {[%clk 0:00:39.6]} 28... g6 {[%clk 0:00:13.6]} 29. b5
{[%clk 0:00:39.5]} 29... Rc5 {[%clk 0:00:13.7]} 30. b6 {[%clk 0:00:39.7]} 30...
Be7 {[%clk 0:00:12.3]} 31. Ra8 {[%clk 0:00:34.5]} 31... Ne2+ {[%clk 0:00:09.6]}
32. Kh1 {[%clk 0:00:33.1]} 32... Nxc3 {[%clk 0:00:05.5]} 33. Rxf8+ {[%clk
0:00:33.5]} 33... Bxf8 {[%clk 0:00:04.5]} 34. b7 {[%clk 0:00:34.4]} 34... Rxc7
{[%clk 0:00:03]} 35. b8=Q {[%clk 0:00:34.4]} 35... Rd7 {[%clk 0:00:03.5]} 36.
Ra8 {[%clk 0:00:32.7]} 1-0